bitfinex/quotes_BTCUSD_20251230
["timestamp","ask_amount","ask_price","bid_price","bid_amount"]
[1767125259668,0.01133889,88192.0,88177.0,0.01134082]
[1767125261086,0.01133915,88190.0,88176.0,0.1366]
[1767125261530,0.01133902,88191.0,88176.0,0.14794095]
[1767125261930,0.01133915,88190.0,88176.0,0.1366]
[1767125262152,0.46343799,88190.0,88176.0,0.1366]
[1767125262544,0.46343799,88190.0,88159.0,0.14794314]
[1767125262545,0.14443,88174.0,88159.0,0.14794314]
[1767125262741,0.14443,88174.0,88160.0,0.01136]
[1767125262742,0.45209884,88170.0,88160.0,0.01136]
[1767125262942,0.45209884,88170.0,88160.0,0.0112752]
[1767125263257,0.45209884,88170.0,88161.0,0.01134288]
[1767125263406,0.45209884,88170.0,88162.0,0.01134275]
[1767125264478,0.45209884,88170.0,88162.0,0.01130122]
[1767125264637,0.45209884,88170.0,88152.0,0.01136]
[1767125264638,0.14443,88169.0,88152.0,0.01136]
[1767125264845,0.45209884,88162.0,88155.0,0.01134365]
[1767125265284,0.14443,88169.0,88155.0,0.01134365]
[1767125265849,0.14443,88169.0,88156.0,0.01134352]
[1767125266091,0.14443,88169.0,88157.0,0.01134339]
[1767125266266,0.14443,88169.0,88158.0,0.01134327]
[1767125266772,0.14443,88169.0,88160.0,0.01134301]
[1767125266955,0.45209884,88170.0,88161.0,0.01134288]
[1767125267155,0.45209884,88170.0,88160.0,0.01134301]
[1767125268111,0.45209884,88170.0,88161.0,0.01134288]
[1767125268312,0.45209884,88170.0,88160.0,0.01134301]
[1767125269771,0.45209884,88170.0,88161.0,0.01134288]
[1767125270573,0.01136,88173.0,88161.0,0.01134288]
[1767125270790,0.01136,88173.0,88163.0,0.01134262]
[1767125271076,0.01136,88173.0,88164.0,0.01134249]
[1767125271281,0.01136,88173.0,88163.0,0.01134262]
[1767125271840,0.01136,88173.0,88162.0,0.15217275]
[1767125273238,0.01136,88173.0,88162.0,0.14083]
[1767125273650,0.45209884,88172.0,88159.0,0.02270314]
[1767125274106,0.45209884,88172.0,88160.0,0.01134301]
[1767125274483,0.45209884,88172.0,88159.0,0.02270314]
[1767125274665,0.45209884,88172.0,88160.0,0.01134301]
[1767125275009,0.45209884,88172.0,88159.0,0.02270314]
[1767125275307,0.45209884,88172.0,88160.0,0.01134301]
[1767125276591,0.45209884,88172.0,88159.0,0.02270314]
[1767125277041,0.14314,88172.0,88159.0,0.01136]
[1767125277273,0.45209884,88170.0,88159.0,0.02270314]
[1767125278173,0.45209884,88170.0,88160.0,0.01134301]
[1767125279673,0.45209884,88170.0,88159.0,0.02270314]
[1767125279977,0.45209884,88170.0,88160.0,0.01134301]
[1767125281241,0.45209884,88170.0,88159.0,0.01136]
[1767125281721,0.45209884,88170.0,88152.0,0.00010659]
[1767125281722,0.000549,88159.0,88152.0,0.00010659]
[1767125281889,0.000549,88159.0,88153.0,0.01136]
[1767125282089,0.45209884,88162.0,88154.0,0.01134378]
[1767125282547,0.45209884,88162.0,88155.0,0.01134365]
[1767125282758,0.45209884,88162.0,88156.0,0.01134352]
[1767125282982,0.45209884,88162.0,88155.0,0.01134365]
[1767125283195,0.14538,88165.0,88162.0,0.00055]
[1767125283346,0.59747884,88170.0,88162.0,0.00055]
[1767125283732,0.59747884,88170.0,88159.0,0.01134314]
[1767125284329,0.59747884,88170.0,88160.0,0.01134301]
[1767125284555,0.59747884,88170.0,88159.0,0.01134314]
[1767125284778,0.59747884,88170.0,88160.0,0.01134301]
[1767125285525,0.59747884,88170.0,88161.0,0.01134288]
[1767125285730,0.59747884,88170.0,88157.0,0.06806038]
[1767125285731,0.00572261,88125.0,88118.0,0.14128043]
[1767125285930,0.14538,88136.0,88122.0,0.0113479]
[1767125286405,0.0114,88141.0,88120.0,0.14209]
[1767125286406,0.15678,88141.0,88124.0,0.14209]
[1767125286612,0.14538,88149.0,88127.0,0.14209]
[1767125286764,0.14538,88149.0,88123.0,0.0114]
[1767125286765,0.01134391,88153.0,88135.0,0.14209]
[1767125286965,0.01134404,88152.0,88137.0,0.14209]
[1767125287278,0.01134391,88153.0,88139.0,0.14209]
[1767125287483,0.01134417,88151.0,88139.0,0.14209]
[1767125287716,0.01134404,88152.0,88139.0,0.14209]
[1767125287943,0.01134429,88150.0,88139.0,0.14209]
[1767125288140,0.01134417,88151.0,88139.0,0.14209]
[1767125288310,0.01134429,88150.0,88139.0,0.14209]
[1767125288512,0.46378915,88150.0,88139.0,0.14209]
[1767125288720,0.45244486,88150.0,88139.0,0.14209]
[1767125288898,0.46378915,88150.0,88139.0,0.14209]
[1767125289126,0.45244486,88150.0,88139.0,0.14209]
[1767125289577,0.60916915,88150.0,88136.0,0.0114]
[1767125289779,0.59782486,88150.0,88136.0,0.0114]
[1767125290118,0.59782486,88150.0,88136.0,0.15349]
[1767125290565,0.60916915,88150.0,88136.0,0.15349]
[1767125290732,0.01134442,88149.0,88136.0,0.15349]
[1767125290934,0.60916915,88150.0,88136.0,0.15349]
[1767125291164,0.01134442,88149.0,88136.0,0.15349]
[1767125291642,0.60916915,88150.0,88136.0,0.15349]
[1767125291847,0.45244486,88150.0,88136.0,0.1648361]
[1767125292053,0.45244486,88150.0,88137.0,0.01134597]
[1767125292701,0.01134417,88151.0,88136.0,0.1648361]
[1767125292853,0.45244486,88150.0,88137.0,0.01134597]
[1767125294328,0.0114,88156.0,88139.0,0.0680738]
[1767125294473,0.45244486,88150.0,88140.0,0.14209]
[1767125296279,0.01126396,88154.0,88140.0,0.13983]
[1767125296481,0.01126396,88154.0,88138.0,0.01134584]
[1767125296482,0.01134378,88154.0,88141.0,0.13983]
[1767125296696,0.01134352,88156.0,88141.0,0.13983]
[1767125296862,0.01134378,88154.0,88141.0,0.13983]
[1767125297063,0.45244486,88160.0,88149.0,0.13983]
[1767125297264,0.01134224,88166.0,88151.0,0.01134417]
[1767125297470,0.22682548,88174.0,88149.0,0.02274442]
[1767125297471,0.15101134,88173.0,88156.0,0.15117352]
[1767125297709,0.45244486,88170.0,88158.0,0.13983]
[1767125298091,0.46378658,88170.0,88158.0,0.13983]
[1767125298268,0.01134185,88169.0,88158.0,0.13983]
[1767125298916,0.45244486,88168.0,88157.0,0.0114]
[1767125299351,0.01134185,88169.0,88157.0,0.0114]
[1767125299703,0.46389329,88170.0,88157.0,0.0114]
[1767125300041,0.01134185,88169.0,88157.0,0.0114]
[1767125300422,0.46389329,88170.0,88157.0,0.0114]
[1767125300796,0.01134185,88169.0,88157.0,0.0114]
[1767125305880,0.05670802,88171.0,88157.0,0.0114]
[1767125306108,0.45244486,88170.0,88157.0,0.01150671]
[1767125306433,0.46378658,88170.0,88157.0,0.01150671]
[1767125306885,0.45244486,88170.0,88157.0,0.15133671]
[1767125307089,0.45244486,88170.0,88159.0,0.13983]
[1767125307502,0.05670644,88174.0,88159.0,0.13983]
[1767125307503,0.00564623,88174.0,88159.0,0.13983]
[1767125307710,0.01134108,88175.0,88160.0,0.13983]
[1767125307928,0.01134121,88174.0,88160.0,0.13978805]
[1767125308302,0.01119269,88174.0,88160.0,0.13978805]
[1767125308487,0.01105924,88174.0,88160.0,0.13978805]
[1767125308893,0.42965994,88170.0,88160.0,0.13978805]
[1767125309057,0.45244486,88170.0,88160.0,0.13978805]
[1767125310313,0.00535924,88174.0,88160.0,0.13978805]
[1767125311466,0.01134134,88173.0,88160.0,0.13978805]
[1767125313226,0.01134134,88173.0,88158.0,0.01134327]
[1767125313227,0.0114,88177.0,88163.0,0.01134262]
[1767125313517,0.0114,88177.0,88163.0,0.13983]
[1767125313724,0.02274082,88177.0,88163.0,0.13983]
[1767125313874,0.01134095,88176.0,88163.0,0.13983]
[1767125315334,0.45244486,88173.0,88163.0,0.13983]
[1767125315734,0.45244486,88180.0,88163.0,0.13983]
[1767125315933,0.01134082,88177.0,88163.0,0.13983]
[1767125316187,0.0114,88178.0,88163.0,0.15117262]
[1767125316346,0.01134082,88177.0,88163.0,0.13983]
[1767125316752,0.01134082,88177.0,88161.0,0.01134288]
[1767125316753,0.15101082,88177.0,88161.0,0.01134288]
[1767125316972,0.01134095,88176.0,88161.0,0.01134288]
[1767125317147,0.45244486,88171.0,88160.0,0.13983]
[1767125318111,0.45244486,88171.0,88160.0,0.15117301]
[1767125319466,0.45244486,88171.0,88161.0,0.01134288]
[1767125320488,0.45244486,88171.0,88160.0,0.15117301]
[1767125322599,0.45244486,88171.0,88160.0,0.13983]
[1767125322803,0.45244486,88171.0,88157.0,0.01150671]
[1767125323001,0.46378658,88170.0,88157.0,0.01150671]
[1767125323208,0.46378658,88170.0,88157.0,0.15129389]
[1767125323545,0.45244486,88170.0,88157.0,0.16263728]
[1767125323886,0.45244486,88170.0,88158.0,0.01134327]
[1767125324085,0.45244486,88170.0,88158.0,0.01130062]
[1767125324929,0.45244486,88170.0,88158.0,0.01125818]
[1767125325100,0.01134146,88172.0,88157.0,0.16263728]
[1767125325299,0.45244486,88170.0,88157.0,0.16263728]
[1767125325502,0.45244486,88170.0,88158.0,0.01134327]
[1767125325886,0.45244486,88170.0,88158.0,0.15117327]
[1767125326225,0.01134095,88176.0,88170.0,0.000549]
[1767125326386,0.01134095,88176.0,88161.0,0.01134288]
[1767125326589,0.01134095,88176.0,88162.0,0.01134275]
[1767125326807,0.01134095,88176.0,88161.0,0.01134288]
[1767125327126,0.01134095,88176.0,88161.0,0.14933288]
[1767125327323,0.45244486,88171.0,88161.0,0.14933288]
[1767125327824,0.45244486,88171.0,88161.0,0.13799]
[1767125328030,0.45244486,88171.0,88161.0,0.14933288]
[1767125330404,0.45244486,88171.0,88161.0,0.14928915]
[1767125331125,0.45244486,88171.0,88162.0,0.01134275]
[1767125331326,0.45244486,88171.0,88161.0,0.14928915]
[1767125331507,0.45244486,88171.0,88162.0,0.01134275]
[1767125331708,0.01134069,88178.0,88162.0,0.14933275]
[1767125331913,0.0114,88179.0,88166.0,0.13799]
[1767125332113,0.06831394,88184.0,88176.0,0.13799]
[1767125332114,0.0002739,88184.0,88176.0,0.13799]
[1767125332300,0.0002739,88184.0,88179.0,0.138539]
[1767125332498,0.0002739,88184.0,88179.0,0.14933056]
[1767125332739,0.0114,88190.0,88181.0,0.14933031]
[1767125332937,0.0114,88190.0,88180.0,0.01134044]
[1767125333203,0.01133928,88189.0,88173.0,0.01134134]
[1767125333356,0.00055,88180.0,88174.0,0.01134121]
[1767125333555,0.00055,88180.0,88175.0,0.01134108]
[1767125333873,0.15048928,88189.0,88174.0,0.01134121]
[1767125334032,0.15048928,88189.0,88175.0,0.01134108]
[1767125335174,0.15048992,88184.0,88172.0,0.0114]
[1767125335337,0.00055,88175.0,88172.0,0.0114]
[1767125335956,0.46378491,88183.0,88172.0,0.0114]
[1767125336270,0.13915,88182.0,88172.0,0.0114]
[1767125336623,0.15049018,88182.0,88172.0,0.01085]
[1767125340624,0.14742,88180.0,88165.0,0.0114]
[1767125340936,0.14742,88180.0,88153.0,0.01134391]
[1767125340937,0.14742,88160.0,88146.0,0.13782]
[1767125341079,0.01134481,88146.0,88143.0,0.0002739]
[1767125341287,0.01134404,88152.0,88146.0,0.001099]
[1767125341288,0.01134417,88151.0,88146.0,0.001099]
[1767125341485,0.14742,88150.0,88146.0,0.001099]
[1767125341686,0.0114,88156.0,88147.0,0.13782]
[1767125341885,0.0114,88156.0,88147.0,0.14916468]
[1767125342106,0.0114,88156.0,88148.0,0.01134455]
[1767125342310,0.0114,88156.0,88149.0,0.01134442]
[1767125342491,0.010851,88156.0,88149.0,0.01134442]
[1767125343091,0.010851,88156.0,88148.0,0.01134455]
[1767125343325,0.010851,88156.0,88149.0,0.01134442]
[1767125344276,0.45244486,88160.0,88149.0,0.01134442]
[1767125344917,0.45244486,88160.0,88150.0,0.01134429]
[1767125345520,0.45189486,88160.0,88150.0,0.06806546]
[1767125345738,0.45189486,88160.0,88151.0,0.01134417]
[1767125345940,0.45189486,88160.0,88152.0,0.01134404]
[1767125346141,0.01134211,88167.0,88152.0,0.01134404]
[1767125346142,0.0114,88165.0,88156.0,0.01134352]
[1767125346393,8.877e-05,88165.0,88155.0,0.01134365]
[1767125346711,8.877e-05,88165.0,88162.0,0.14916275]
[1767125346856,0.0114,88175.0,88164.0,0.01134249]
[1767125347043,0.0114,88175.0,88162.0,0.14916275]
[1767125347044,0.0114,88175.0,88163.0,0.01134262]
[1767125347238,0.45244486,88173.0,88162.0,0.13782]
[1767125347469,0.45244486,88173.0,88162.0,0.14916275]
[1767125348139,0.45244486,88173.0,88162.0,0.13782]
[1767125348365,0.45244486,88173.0,88160.0,0.07945748]
[1767125348366,0.45244486,88173.0,88161.0,0.01134288]
[1767125348600,0.45244486,88170.0,88160.0,0.02274301]
[1767125349006,0.45244486,88170.0,88161.0,0.01134288]
[1767125349518,0.17016108,88175.0,88161.0,0.01134288]
[1767125350018,0.15882,88175.0,88161.0,0.01134288]
[1767125352072,0.15882,88175.0,88162.0,0.01134275]
[1767125355006,0.14742,88175.0,88162.0,0.01134275]
[1767125359774,0.14742,88175.0,88161.0,0.01134288]
[1767125361373,0.14258,88174.0,88160.0,0.02274301]
[1767125361552,0.14258,88174.0,88163.0,0.01134262]
[1767125361738,0.14258,88174.0,88162.0,0.01134275]
[1767125362135,0.14258,88174.0,88163.0,0.01134262]
[1767125362341,0.14258,88174.0,88162.0,0.01134275]
[1767125363743,0.14258,88174.0,88163.0,0.01134262]
[1767125365182,0.14258,88174.0,88162.0,0.01134275]
[1767125366114,0.14258,88174.0,88163.0,0.01134262]
[1767125366694,0.14258,88174.0,88162.0,0.01134275]
[1767125367324,0.14258,88174.0,88160.0,0.02274301]
[1767125368247,0.14258,88174.0,88161.0,0.01134288]
[1767125368602,0.14258,88174.0,88162.0,0.01134275]
[1767125369005,0.14258,88174.0,88163.0,0.01134262]
[1767125369299,0.14258,88174.0,88161.0,0.01134288]
[1767125369487,0.14258,88174.0,88162.0,0.01134275]
[1767125371515,0.14258,88174.0,88163.0,0.01134262]
[1767125371942,0.12262,88174.0,88163.0,0.01134262]
[1767125372939,0.12262,88174.0,88162.0,0.01134275]
[1767125377156,0.12262,88174.0,88161.0,0.01134288]
[1767125377554,0.12262,88174.0,88162.0,0.01134275]
[1767125377756,0.12262,88174.0,88160.0,0.0114]
[1767125378115,0.01134134,88173.0,88160.0,0.0114]
[1767125378258,0.0567067,88173.0,88160.0,0.0114]
[1767125378481,0.000549,88160.0,88150.0,0.01134429]
[1767125378658,0.00060953,88160.0,88154.0,0.0114]
[1767125378970,6.053e-05,88160.0,88154.0,0.0114]
[1767125379356,6.053e-05,88160.0,88154.0,0.01085]
[1767125394967,6.053e-05,88160.0,88151.0,0.01134417]
[1767125395749,6.053e-05,88160.0,88150.0,0.01134429]
[1767125395965,6.053e-05,88160.0,88149.0,0.02270442]
[1767125396749,0.13746,88158.0,88149.0,0.01136]
[1767125396953,0.13746,88158.0,88149.0,0.010811]
[1767125397526,0.13746,88158.0,88149.0,0.02215542]
[1767125397727,6.053e-05,88160.0,88153.0,0.01134391]
[1767125398022,5.3e-07,88160.0,88153.0,0.01134391]
[1767125398185,5.3e-07,88160.0,88152.0,0.15570404]
[1767125399629,5.3e-07,88160.0,88150.0,0.01134429]
[1767125399978,5.3e-07,88160.0,88149.0,0.02215542]
[1767125400175,5.3e-07,88160.0,88149.0,0.010811]
[1767125400428,5.3e-07,88160.0,88150.0,0.01134429]
[1767125400792,5.3e-07,88160.0,88151.0,0.01134417]
[1767125401126,5.3e-07,88160.0,88150.0,0.01134429]
[1767125401914,5.3e-07,88160.0,88151.0,0.01134417]
[1767125402126,0.01134185,88169.0,88153.0,0.15675391]
[1767125402333,0.15235069,88178.0,88169.0,0.001039]
[1767125402534,0.04720571,88177.0,88169.0,0.001039]
[1767125402739,0.01134146,88172.0,88169.0,0.001039]
[1767125402956,0.05671084,88167.0,88156.0,0.01136]
[1767125403270,0.05671084,88167.0,88153.0,0.14549877]
[1767125403271,0.14101,88160.0,88153.0,8.877e-05]
[1767125403483,6e-05,88156.0,88153.0,8.877e-05]
[1767125403634,0.14101,88160.0,88153.0,8.877e-05]
[1767125403847,0.01134262,88163.0,88153.0,8.877e-05]
[1767125404383,0.01134249,88164.0,88153.0,8.877e-05]
[1767125406625,0.01134236,88165.0,88153.0,8.877e-05]
[1767125407362,0.01134249,88164.0,88153.0,8.877e-05]
[1767125408837,0.01134236,88165.0,88153.0,8.877e-05]
[1767125410470,0.01134249,88164.0,88153.0,8.877e-05]
[1767125411662,0.01134262,88163.0,88153.0,8.877e-05]
[1767125412246,0.01134249,88164.0,88153.0,8.877e-05]
[1767125412476,0.45230922,88163.0,88153.0,8.877e-05]
[1767125412698,0.01134327,88158.0,88153.0,8.877e-05]
[1767125412905,0.01134249,88164.0,88151.0,0.0115072]
[1767125412906,0.14101,88157.0,88151.0,0.0115072]
[1767125413316,0.4636521,88161.0,88151.0,0.0115072]
[1767125413945,0.45230922,88161.0,88151.0,0.0115072]
[1767125418293,0.01134262,88163.0,88151.0,0.0115072]
[1767125418485,0.01134249,88164.0,88151.0,0.0115072]
[1767125418693,0.01134262,88163.0,88151.0,0.0115072]
[1767125418987,0.45230922,88161.0,88151.0,0.0115072]
[1767125424172,0.01134262,88163.0,88151.0,0.0115072]
[1767125424402,0.45230922,88161.0,88151.0,0.0115072]
[1767125425365,0.01134249,88164.0,88151.0,0.0115072]
[1767125425569,0.45230922,88161.0,88151.0,0.0115072]
[1767125428636,0.4636521,88161.0,88151.0,0.0001472]
[1767125428836,0.01134301,88160.0,88151.0,0.0001472]
[1767125429074,0.4636521,88161.0,88151.0,0.0001472]
[1767125431232,0.13702,88160.0,88151.0,0.0001472]
[1767125431840,0.14836301,88160.0,88151.0,0.0001472]
[1767125432261,0.13702,88160.0,88151.0,0.0001472]
[1767125433179,0.13702,88160.0,88151.0,0.00020773]
[1767125441519,0.45230922,88161.0,88151.0,0.00020773]
[1767125446779,0.45230922,88161.0,88151.0,0.0115519]
[1767125447014,0.45230922,88170.0,88161.0,0.000489]
[1767125447358,0.45230922,88170.0,88156.0,0.14734]
[1767125447359,0.02270185,88169.0,88156.0,0.14734]
[1767125447852,0.01136,88169.0,88156.0,0.15868352]
[1767125447995,0.02270185,88169.0,88156.0,0.14734]
[1767125448189,0.01134211,88167.0,88156.0,0.14734]
[1767125448387,0.01134224,88166.0,88152.0,0.02270404]
[1767125448727,0.01134211,88167.0,88153.0,0.01134391]
[1767125449394,0.01134211,88167.0,88154.0,0.01134378]
[1767125450045,0.14875198,88168.0,88154.0,0.01134378]
[1767125450770,0.14875198,88168.0,88155.0,0.01134365]
[1767125450974,0.01134211,88167.0,88154.0,0.01134378]
[1767125451582,0.01134211,88167.0,88153.0,0.01134391]
[1767125451798,0.01134224,88166.0,88153.0,0.01134391]
[1767125452004,0.14875211,88167.0,88154.0,0.01134378]
[1767125452210,0.14875211,88167.0,88153.0,0.01134391]
[1767125453025,0.14875211,88167.0,88154.0,0.01134378]
[1767125453433,0.14875211,88167.0,88153.0,0.01134391]
[1767125453664,0.14875211,88167.0,88154.0,0.01134378]
[1767125456694,0.14875211,88167.0,88152.0,0.01136]
[1767125456891,0.01134249,88164.0,88152.0,0.01136]
[1767125458218,0.01134236,88165.0,88152.0,0.01136]
[1767125458436,0.01134249,88164.0,88152.0,0.01136]
[1767125459026,0.46365197,88162.0,88152.0,0.01136]
[1767125459233,0.01134288,88161.0,88152.0,0.01136]
[1767125459506,0.01134301,88160.0,88152.0,0.01136]
[1767125460082,0.01134288,88161.0,88152.0,0.01136]
[1767125460308,0.01134314,88159.0,88152.0,0.01136]
[1767125460505,0.01134532,88142.0,88133.0,0.00011372]
[1767125460706,0.01134532,88142.0,88122.0,0.1475279]
[1767125460707,0.0113461,88136.0,88120.0,0.01134816]
[1767125461058,0.45230922,88133.0,88124.0,0.01134764]
[1767125461269,0.01134558,88140.0,88126.0,0.01134738]
[1767125461457,0.01134391,88153.0,88134.0,0.13618]
[1767125461679,0.01134391,88153.0,88130.0,0.45230922]
[1767125461680,0.45230922,88150.0,88140.0,0.00055]
[1767125461890,0.59310922,88150.0,88140.0,0.00055]
[1767125462120,0.59310922,88150.0,88136.0,0.12614336]
[1767125462323,0.60445351,88150.0,88137.0,0.01134597]
[1767125462525,0.1408,88149.0,88136.0,0.0113461]
[1767125462732,0.15214442,88149.0,88135.0,0.01134623]
[1767125462932,0.59310922,88145.0,88132.0,0.01134661]
[1767125463142,0.45230922,88141.0,88135.0,0.01134623]
[1767125463354,0.59310922,88145.0,88134.0,0.01134635]
[1767125463559,0.1408,88144.0,88134.0,0.01134635]
[1767125463762,0.1408,88144.0,88136.0,0.0113461]
[1767125464259,0.1408,88144.0,88137.0,0.01134597]
[1767125464493,0.1408,88144.0,88138.0,0.01134584]
[1767125464692,0.1408,88144.0,88136.0,0.0113461]
[1767125464875,0.1408,88144.0,88137.0,0.01134597]
[1767125465168,0.1408,88144.0,88136.0,0.0113461]
[1767125465430,0.1408,88144.0,88137.0,0.01134597]
[1767125465661,0.1408,88144.0,88136.0,0.0113461]
[1767125465865,0.1408,88144.0,88137.0,0.01134597]
[1767125466170,0.1408,88144.0,88138.0,0.01134584]
[1767125466777,0.1408,88144.0,88137.0,0.01134597]
[1767125467955,0.1408,88144.0,88138.0,0.01134584]
[1767125468156,0.1408,88144.0,88137.0,0.01134597]
[1767125468546,0.1408,88144.0,88137.0,0.06807583]
[1767125468779,0.01134301,88160.0,88144.0,0.13618]
[1767125468995,0.01136,88158.0,88149.0,0.01134442]
[1767125469247,0.01136,88158.0,88150.0,0.01134429]
[1767125470498,0.01136,88158.0,88146.0,0.13618]
[1767125470911,0.15216,88158.0,88145.0,0.01134494]
[1767125471515,0.15216,88158.0,88147.0,0.01134468]
[1767125471837,0.15216,88158.0,88146.0,0.01134481]
[1767125472047,0.15216,88158.0,88148.0,0.01134455]
[1767125472189,0.15216,88158.0,88146.0,0.01134481]
[1767125472393,0.15216,88158.0,88147.0,0.01134468]
[1767125473010,0.15216,88158.0,88143.0,0.01136]
[1767125473265,0.15216,88158.0,88134.0,0.01134635]
[1767125473266,0.1408,88142.0,88134.0,0.01134635]
[1767125473467,0.1408,88142.0,88137.0,0.01134597]
[1767125473673,0.1408,88142.0,88135.0,0.01134623]
[1767125473883,0.1408,88142.0,88136.0,0.0113461]
[1767125474085,0.1407596,88142.0,88136.0,0.0113461]
[1767125474290,0.1407596,88142.0,88137.0,0.01134597]
[1767125474656,0.1407596,88142.0,88136.0,0.0113461]
[1767125476121,0.01136,88147.0,88137.0,0.01134597]
[1767125476322,0.14921,88147.0,88136.0,0.0113461]
[1767125476469,0.14921,88147.0,88137.0,0.01134597]
[1767125476704,0.14921,88147.0,88136.0,0.0113461]
[1767125477104,0.14921,88147.0,88137.0,0.01134597]
[1767125479608,0.14921,88147.0,88136.0,0.0113461]
[1767125480452,0.16055468,88147.0,88133.0,0.01134648]
[1767125480679,0.01134494,88145.0,88132.0,0.01134661]
[1767125480889,0.01134481,88146.0,88132.0,0.01134661]
[1767125481116,0.01134494,88145.0,88132.0,0.01134661]
[1767125481326,0.14919481,88146.0,88133.0,0.01134648]
[1767125481976,0.01134494,88145.0,88132.0,0.01134661]
[1767125482180,0.14919494,88145.0,88132.0,0.01134661]
[1767125482386,0.13785,88145.0,88133.0,0.01134648]
[1767125482982,0.14919494,88145.0,88132.0,0.01134661]
[1767125483181,0.13785,88145.0,88133.0,0.01134648]
[1767125483406,0.14824564,88142.0,88129.0,0.01136]
[1767125483615,0.14824564,88142.0,88129.0,0.01146673]
[1767125483616,0.13785,88137.0,88129.0,0.01146673]
[1767125483818,0.13785,88137.0,88129.0,0.00010673]
[1767125484844,0.13785,88137.0,88126.0,0.01155588]
[1767125484845,0.1491961,88136.0,88126.0,0.0002085]
[1767125485063,0.14930279,88136.0,88126.0,0.0002085]
[1767125485249,0.13795669,88136.0,88126.0,0.0002085]
[1767125489950,0.13795669,88136.0,88126.0,0.01155588]
[1767125490539,0.13795669,88136.0,88127.0,0.01134726]
[1767125490763,0.13795669,88136.0,88128.0,0.01134713]
[1767125490973,0.13795669,88136.0,88127.0,0.01134726]
[1767125493027,0.13795669,88136.0,88128.0,0.01134713]
[1767125493447,0.13795669,88136.0,88127.0,0.01134726]
[1767125493448,0.13740769,88136.0,88127.0,0.01134726]
[1767125494240,0.13740769,88136.0,88128.0,0.01134713]
[1767125495932,0.00010669,88136.0,88129.0,0.011347]
[1767125496111,0.00010669,88136.0,88130.0,0.01134687]
[1767125496750,0.00010669,88136.0,88129.0,0.011347]
[1767125498021,0.00010669,88136.0,88131.0,0.01134674]
[1767125498233,0.00010669,88136.0,88129.0,0.011347]
[1767125498659,0.00010669,88136.0,88126.0,0.01155588]
[1767125498873,0.00010669,88136.0,88126.0,0.0002085]
[1767125499093,0.00010669,88136.0,88126.0,0.06829276]
[1767125499438,0.00010669,88136.0,88128.0,0.01134713]
[1767125500297,0.00010669,88136.0,88129.0,0.011347]
[1767125500526,0.00010669,88136.0,88130.0,0.01134687]
[1767125500780,0.00010669,88136.0,88129.0,0.011347]
[1767125500997,0.00010669,88136.0,88128.0,0.01134713]
[1767125502080,0.00010669,88136.0,88129.0,0.011347]
[1767125502505,0.00010669,88136.0,88128.0,0.01134713]
[1767125503138,0.00010669,88136.0,88129.0,0.011347]
[1767125510253,0.00010669,88136.0,88126.0,0.01155588]
[1767125510450,0.000549,88129.0,88126.0,0.01155588]
[1767125511080,0.00010669,88136.0,88128.0,0.01134713]
[1767125511810,0.00010669,88136.0,88129.0,0.011347]
[1767125512814,0.00010669,88136.0,88128.0,0.01134713]
[1767125513214,0.00010669,88136.0,88127.0,0.01134726]
[1767125513391,0.01136,88139.0,88128.0,0.01134713]
[1767125514803,0.000549,88128.0,88126.0,0.01155588]
[1767125515014,0.000549,88128.0,88126.0,0.01166257]
[1767125515265,0.16722571,88139.0,88126.0,0.01166257]
[1767125515583,0.15588,88139.0,88127.0,0.01134726]
[1767125516134,0.15588,88139.0,88128.0,0.01134713]
[1767125518725,0.15588,88139.0,88127.0,0.01134726]
[1767125520367,0.15588,88139.0,88128.0,0.01134713]
[1767125523196,0.15588,88139.0,88127.0,0.01134726]
[1767125523609,0.14027,88137.0,88126.0,0.00031519]
[1767125524550,0.15161597,88137.0,88126.0,0.00031519]
[1767125524724,0.14027,88137.0,88126.0,0.00031519]
[1767125524975,0.14027,88137.0,88122.0,0.05673917]
[1767125524976,0.14027,88137.0,88118.0,0.13344036]
[1767125525183,0.14027,88137.0,88114.0,0.0002]
[1767125525184,0.000315,88126.0,88114.0,0.0002]
[1767125525406,0.14027,88126.0,88114.0,0.0002]
[1767125525614,0.14027,88126.0,88115.0,0.0113488]
[1767125526305,0.14027,88126.0,88116.0,0.05674336]
[1767125526505,0.14027,88126.0,88118.0,0.01134841]
[1767125526911,0.14027,88126.0,88117.0,0.02979132]
[1767125527112,0.14027,88126.0,88117.0,0.04113986]
[1767125527340,0.14027,88126.0,88118.0,0.01134841]
[1767125527553,0.01136,88130.0,88118.0,0.06809044]
[1767125528119,0.05672866,88139.0,88121.0,0.01134803]
[1767125528320,0.01134558,88140.0,88130.0,0.000549]
[1767125528521,0.01134545,88141.0,88126.0,0.20458393]
[1767125528697,0.01136,88139.0,88129.0,0.011347]
[1767125528919,0.01136,88139.0,88128.0,0.01134713]
[1767125529522,0.0113452,88143.0,88130.0,0.01134687]
[1767125529752,0.14027,88149.0,88135.0,0.1365]
[1767125530090,0.14027,88149.0,88134.0,0.01134635]
[1767125530091,0.22702153,88159.0,88134.0,0.01134635]
[1767125530092,0.01136,88156.0,88146.0,0.01134481]
[1767125530274,0.01136,88157.0,88147.0,0.01134468]
[1767125531096,0.01136,88157.0,88148.0,0.01134455]
[1767125531478,0.1404182,88160.0,88148.0,0.01134455]
[1767125531982,0.1404182,88160.0,88149.0,0.01134442]
[1767125532605,0.59276063,88160.0,88149.0,0.01134442]
[1767125535286,0.0001482,88160.0,88150.0,0.01134429]
[1767125535446,0.0001482,88160.0,88151.0,0.1365]
[1767125537647,0.000106,88151.0,88143.0,0.01136]
[1767125537967,0.01134327,88158.0,88143.0,0.0227052]
[1767125538147,0.13725,88159.0,88147.0,0.01134468]
[1767125539667,0.13725,88159.0,88148.0,0.01134455]
[1767125540292,0.13725,88159.0,88149.0,0.01134442]
[1767125540505,0.0001482,88160.0,88150.0,0.01134429]
[1767125540726,0.0001482,88160.0,88150.0,0.14963]
[1767125540925,2e-07,88160.0,88154.0,0.14963]
[1767125541100,2e-07,88160.0,88158.0,0.14963]
[1767125541713,2e-07,88160.0,88156.0,0.16097352]
[1767125541931,2e-07,88160.0,88156.0,0.14963]
[1767125542151,2e-07,88160.0,88156.0,0.16097352]
[1767125543182,2e-07,88160.0,88157.0,0.16097339]
[1767125545877,2e-07,88160.0,88157.0,0.16099]
[1767125546085,2e-07,88160.0,88157.0,0.17233339]
[1767125546586,2e-07,88160.0,88157.0,0.07941979]
[1767125546771,2e-07,88160.0,88158.0,0.14963]
[1767125547962,2e-07,88160.0,88159.0,0.0567157]
[1767125548739,2e-07,88160.0,88159.0,0.2063457]
[1767125549359,0.0001482,88169.0,88160.0,0.05671467]
[1767125549582,0.0001482,88169.0,88159.0,0.06805884]
[1767125549583,0.13725,88181.0,88169.0,0.000148]